[Event "MČR mládeže v rapid šachu 2024 H10"]
[Site "Harrachov, Czech Republic"]
[Date "????.??.??"]
[Round "2.4"]
[White "Burel Jan"]
[Black "Bukovskij Dmitri"]
[Result "0-1"]
[TimeControl "20+5"]
[WhiteFideId "23754907"]
[BlackFideId "23749660"]
[WhiteElo "1566"]
[BlackElo "1700"]

1. e4 {[%clk 00:20:08]} {[%emt 00:00:01]} c5 {[%clk 00:20:10]} {[%emt
00:00:01]} 2. Nf3 {[%clk 00:20:10]} {[%emt 00:00:02]} e6 {[%clk 00:20:15]}
{[%emt 00:00:01]} 3. d4 cxd4 {[%clk 00:20:19]} 4. Nxd4 {[%clk 00:20:14]} {[%emt
00:00:02]} a6 {[%clk 00:20:23]} {[%emt 00:00:02]} 5. Nc3 {[%clk 00:20:06]}
{[%emt 00:00:12]} b5 {[%clk 00:20:27]} {[%emt 00:00:01]} 6. a3 {[%clk
00:19:56]} {[%emt 00:00:14]} Bb7 {[%clk 00:20:28]} {[%emt 00:00:04]} 7. Bd3
{[%clk 00:19:40]} {[%emt 00:00:21]} Nc6 {[%clk 00:20:31]} {[%emt 00:00:03]} 8.
Nxc6 {[%clk 00:19:40]} {[%emt 00:00:04]} Bxc6 {[%clk 00:20:35]} {[%emt
00:00:02]} 9. Be3 {[%clk 00:19:28]} {[%emt 00:00:16]} Qb8 {[%clk 00:20:34]}
{[%emt 00:00:07]} 10. O-O {[%clk 00:19:06]} {[%emt 00:00:27]} Bd6 {[%clk
00:20:37]} {[%emt 00:00:02]} 11. g3 {[%clk 00:18:53]} {[%emt 00:00:17]} Ne7
{[%clk 00:20:36]} {[%emt 00:00:07]} 12. Qe2 {[%clk 00:18:36]} {[%emt 00:00:22]}
O-O {[%clk 00:20:22]} {[%emt 00:00:20]} 13. f4 {[%emt 00:00:20]} f5 {[%emt
00:00:57]} 14. Bd4 {[%clk 00:17:21]} {[%emt 00:00:20]} Bc7 {[%clk 00:19:44]}
{[%emt 00:00:36]} 15. Qh5 {[%clk 00:16:22]} {[%emt 00:01:03]} Bb6 {[%clk
00:19:37]} {[%emt 00:00:14]} 16. Bxb6 {[%clk 00:16:13]} {[%emt 00:00:14]} Qxb6+
{[%clk 00:19:33]} {[%emt 00:00:09]} 17. Rf2 {[%clk 00:16:07]} {[%emt 00:00:10]}
b4 {[%clk 00:19:06]} {[%emt 00:00:32]} 18. axb4 {[%clk 00:15:50]} {[%emt
00:00:21]} Qxb4 {[%clk 00:19:10]} {[%emt 00:00:02]} 19. Ra2 {[%clk 00:14:16]}
{[%emt 00:01:39]} fxe4 {[%clk 00:18:47]} {[%emt 00:00:28]} 20. Bf1 {[%clk
00:12:54]} {[%emt 00:01:27]} Nd5 {[%clk 00:17:31]} {[%emt 00:01:21]} 21. Nxd5
{[%clk 00:12:05]} {[%emt 00:00:54]} Bxd5 {[%clk 00:17:34]} {[%emt 00:00:03]} 22.
b3 {[%clk 00:11:57]} {[%emt 00:00:13]} a5 {[%clk 00:16:50]} {[%emt 00:00:48]}
23. Ra4 {[%clk 00:11:20]} {[%emt 00:00:41]} Qc5 {[%clk 00:16:47]} {[%emt
00:00:08]} 24. c4 {[%clk 00:10:57]} {[%emt 00:00:28]} Rf5 {[%clk 00:16:35]}
{[%emt 00:00:17]} 25. Qd1 {[%clk 00:10:38]} {[%emt 00:00:22]} Bc6 {[%clk
00:16:34]} {[%emt 00:00:08]} 26. Raa2 {[%clk 00:10:18]} {[%emt 00:00:24]} d6
{[%clk 00:15:12]} {[%emt 00:01:29]} 27. Bh3 {[%clk 00:10:11]} {[%emt 00:00:11]}
Rf6 {[%clk 00:14:54]} {[%emt 00:00:23]} 28. Ra1 {[%clk 00:08:58]} {[%emt
00:01:18]} e3 {[%clk 00:14:08]} {[%emt 00:00:51]} 29. Re2 {[%clk 00:08:36]}
{[%emt 00:00:26]} Bf3 {[%clk 00:14:11]} {[%emt 00:00:03]} 30. Bg2 {[%clk
00:08:33]} {[%emt 00:00:08]} Bxe2 {[%clk 00:13:48]} {[%emt 00:00:29]} 31. Qxe2
{[%clk 00:08:35]} {[%emt 00:00:03]} Rb8 {[%clk 00:13:49]} {[%emt 00:00:04]} 32.
Kh1 {[%clk 00:07:55]} {[%emt 00:00:44]} Rxb3 {[%clk 00:13:21]} {[%emt
00:00:33]} 33. Qc2 {[%clk 00:06:49]} {[%emt 00:01:10]} Rb4 {[%emt 00:00:40]} 34.
Qe4 {[%clk 00:05:59]} {[%emt 00:00:50]} Rxc4 {[%clk 00:12:21]} {[%emt
00:00:37]} 35. Qa8+ {[%clk 00:05:59]} {[%emt 00:00:05]} Rf8 {[%clk 00:12:24]}
{[%emt 00:00:02]} 36. Qf3 {[%clk 00:05:31]} {[%emt 00:00:30]} Rc1+ {[%clk
00:12:25]} {[%emt 00:00:07]} 37. Rxc1 {[%clk 00:05:32]} {[%emt 00:00:04]} Qxc1+
{[%clk 00:12:27]} {[%emt 00:00:02]} 38. Bf1 {[%clk 00:05:34]} {[%emt 00:00:03]}
d5 {[%clk 00:12:25]} {[%emt 00:00:06]} 39. Qg4 {[%clk 00:05:32]} {[%emt
00:00:08]} Qxf1# {[%clk 00:12:25]} {[%emt 00:00:05]} 0-1



[ePGN "0.1;DGT LiveChess/2.2.6"]

[Event "MČR mládeže v rapid šachu 2024 H10"]
[Site "Harrachov, Czech Republic"]
[Date "????.??.??"]
[Round "2.5"]
[White "Hlavacek Pavel"]
[Black "Zelenka Tomas"]
[Result "1-0"]
[TimeControl "20+5"]
[WhiteFideId "23761768"]
[BlackFideId "23750200"]
[WhiteElo "1641"]
[BlackElo "1607"]

1. d4 {[%clk 00:20:08]} {[%emt 00:00:02]} Nf6 {[%clk 00:20:08]} {[%emt
00:00:02]} 2. c4 {[%clk 00:20:11]} {[%emt 00:00:02]} e6 {[%clk 00:20:11]}
{[%emt 00:00:01]} 3. Nc3 {[%clk 00:20:15]} {[%emt 00:00:01]} d5 {[%clk
00:20:15]} 4. Bg5 {[%clk 00:20:18]} {[%emt 00:00:02]} Be7 {[%clk 00:20:14]}
{[%emt 00:00:06]} 5. Nf3 {[%clk 00:20:17]} {[%emt 00:00:06]} O-O {[%clk
00:20:08]} {[%emt 00:00:12]} 6. e3 {[%clk 00:20:18]} {[%emt 00:00:04]} c6
{[%clk 00:19:43]} {[%emt 00:00:29]} 7. cxd5 {[%clk 00:20:20]} {[%emt 00:00:04]}
exd5 {[%clk 00:19:25]} {[%emt 00:00:23]} 8. Bd3 {[%clk 00:20:21]} {[%emt
00:00:04]} Bg4 {[%clk 00:18:38]} {[%emt 00:00:50]} 9. O-O {[%clk 00:19:48]}
{[%emt 00:00:39]} Nbd7 {[%clk 00:18:17]} {[%emt 00:00:26]} 10. h3 {[%clk
00:19:33]} {[%emt 00:00:21]} Bh5 {[%clk 00:18:06]} {[%emt 00:00:14]} 11. Be2
{[%clk 00:19:33]} {[%emt 00:00:06]} Re8 {[%clk 00:17:01]} {[%emt 00:01:09]} 12.
Nd2 {[%clk 00:18:28]} {[%emt 00:01:09]} Bxe2 {[%clk 00:16:27]} {[%emt
00:00:40]} 13. Qxe2 {[%clk 00:18:29]} {[%emt 00:00:04]} Nf8 {[%clk 00:14:58]}
{[%emt 00:01:34]} 14. Bxf6 {[%clk 00:17:41]} {[%emt 00:00:53]} Bxf6 {[%clk
00:14:57]} {[%emt 00:00:06]} 15. Qd3 {[%clk 00:17:12]} {[%emt 00:00:32]} Ng6
{[%clk 00:13:50]} {[%emt 00:01:13]} 16. b4 {[%clk 00:15:40]} {[%emt 00:01:37]}
b6 {[%clk 00:12:23]} {[%emt 00:01:32]} 17. b5 {[%clk 00:14:20]} {[%emt
00:01:25]} c5 {[%clk 00:12:12]} {[%emt 00:00:16]} 18. Nf3 {[%clk 00:13:01]}
{[%emt 00:01:23]} Rc8 {[%clk 00:11:30]} {[%emt 00:00:47]} 19. Rac1 {[%clk
00:11:27]} {[%emt 00:01:40]} cxd4 {[%clk 00:11:06]} {[%emt 00:00:29]} 20. Nxd4
{[%clk 00:10:25]} {[%emt 00:01:07]} Bxd4 {[%clk 00:10:55]} {[%emt 00:00:15]} 21.
Qxd4 {[%clk 00:10:11]} {[%emt 00:00:20]} Re5 {[%clk 00:08:51]} {[%emt
00:02:09]} 22. Ne2 {[%clk 00:08:21]} {[%emt 00:01:55]} Rxc1 {[%clk 00:08:18]}
{[%emt 00:00:38]} 23. Rxc1 {[%clk 00:08:23]} {[%emt 00:00:04]} Re4 {[%clk
00:07:58]} {[%emt 00:00:25]} 24. Qd2 {[%clk 00:07:50]} {[%emt 00:00:36]} Ne5
{[%clk 00:06:26]} {[%emt 00:01:37]} 25. Rd1 {[%clk 00:05:39]} {[%emt 00:02:17]}
d4 {[%clk 00:05:30]} {[%emt 00:01:01]} 26. Nxd4 {[%clk 00:04:35]} {[%emt
00:01:09]} Qg5 {[%clk 00:04:29]} {[%emt 00:01:06]} 27. Qc2 {[%clk 00:04:02]}
{[%emt 00:00:36]} f5 {[%clk 00:03:19]} {[%emt 00:01:18]} 28. Qc8+ {[%clk
00:02:51]} {[%emt 00:01:15]} Kf7 {[%clk 00:03:23]} {[%emt 00:00:01]} 29. Nxf5
{[%clk 00:02:20]} {[%emt 00:00:36]} Nf3+ {[%clk 00:01:06]} {[%emt 00:02:22]} 30.
Kh1 {[%clk 00:02:04]} {[%emt 00:00:20]} Nh4 {[%clk 00:01:06]} {[%emt 00:00:05]}
31. Nxh4 {[%clk 00:01:12]} {[%emt 00:00:57]} Qxh4 {[%clk 00:01:03]} {[%emt
00:00:08]} 32. Qf5+ {[%clk 00:01:12]} {[%emt 00:00:06]} Kg8 {[%clk 00:00:46]}
{[%emt 00:00:23]} 33. Rd7 {[%clk 00:00:33]} {[%emt 00:00:43]} 1-0



[ePGN "0.1;DGT LiveChess/2.2.6"]

[Event "MČR mládeže v rapid šachu 2024 H10"]
[Site "Harrachov, Czech Republic"]
[Date "????.??.??"]
[Round "2.6"]
[White "Hradek Martin"]
[Black "Lutskiy Mikhail"]
[Result "0-1"]
[TimeControl "20+5"]
[WhiteFideId "23753501"]
[BlackFideId "23744308"]
[WhiteElo "1735"]
[BlackElo "1729"]

1. Nc3 {[%clk 00:20:07]} {[%emt 00:00:02]} d5 {[%clk 00:20:04]} {[%emt
00:00:07]} 2. Nf3 {[%clk 00:20:09]} {[%emt 00:00:03]} Nf6 {[%clk 00:20:04]}
{[%emt 00:00:05]} 3. d4 {[%clk 00:20:08]} {[%emt 00:00:07]} e6 {[%clk
00:20:04]} {[%emt 00:00:05]} 4. Bg5 {[%clk 00:20:07]} {[%emt 00:00:05]} Be7
{[%clk 00:20:06]} {[%emt 00:00:03]} 5. Bxf6 {[%clk 00:20:05]} {[%emt 00:00:08]}
Bxf6 {[%clk 00:20:08]} {[%emt 00:00:03]} 6. e4 {[%clk 00:20:07]} {[%emt
00:00:03]} O-O {[%clk 00:19:45]} {[%emt 00:00:28]} 7. e5 {[%clk 00:20:09]}
{[%emt 00:00:03]} Be7 {[%clk 00:19:48]} {[%emt 00:00:02]} 8. Bd3 {[%clk
00:20:11]} {[%emt 00:00:03]} b6 {[%clk 00:18:26]} {[%emt 00:01:27]} 9. Qe2
{[%clk 00:20:09]} {[%emt 00:00:07]} Nd7 {[%clk 00:18:09]} {[%emt 00:00:22]} 10.
O-O-O {[%clk 00:20:06]} {[%emt 00:00:07]} c5 {[%clk 00:18:13]} {[%emt
00:00:02]} 11. h4 {[%clk 00:19:52]} {[%emt 00:00:20]} h6 {[%clk 00:16:55]}
{[%emt 00:01:23]} 12. g4 {[%clk 00:19:40]} {[%emt 00:00:16]} c4 {[%clk
00:16:58]} {[%emt 00:00:02]} 13. Bxc4 {[%clk 00:19:26]} {[%emt 00:00:19]} dxc4
{[%clk 00:17:01]} {[%emt 00:00:02]} 14. Qe4 {[%clk 00:19:27]} {[%emt 00:00:04]}
Rb8 {[%clk 00:16:43]} {[%emt 00:00:24]} 15. g5 {[%clk 00:19:20]} {[%emt
00:00:11]} h5 {[%clk 00:11:42]} {[%emt 00:05:06]} 16. g6 {[%clk 00:18:58]}
{[%emt 00:00:27]} f5 {[%clk 00:11:24]} {[%emt 00:00:23]} 17. exf6 {[%emt
00:00:14]} Nxf6 {[%clk 00:11:25]} {[%emt 00:00:03]} 18. Qe5 {[%clk 00:17:42]}
{[%emt 00:00:58]} Bd6 {[%clk 00:11:00]} {[%emt 00:00:45]} 19. Qg5 {[%clk
00:17:20]} {[%emt 00:00:27]} Bb7 {[%clk 00:10:17]} {[%emt 00:00:49]} 20. Qe3
{[%clk 00:16:24]} {[%emt 00:00:47]} Bxf3 {[%clk 00:09:37]} {[%emt 00:00:53]} 21.
Qxf3 {[%clk 00:16:14]} {[%emt 00:00:19]} Ng4 {[%clk 00:09:32]} {[%emt
00:00:12]} 22. Qe4 {[%clk 00:15:13]} {[%emt 00:01:04]} Qf6 {[%clk 00:09:21]}
{[%emt 00:00:12]} 23. Rhf1 {[%clk 00:14:20]} {[%emt 00:01:00]} Qf4+ {[%clk
00:09:01]} {[%emt 00:00:28]} 24. Kb1 {[%clk 00:13:21]} {[%emt 00:01:03]} Qxe4
{[%clk 00:08:47]} {[%emt 00:00:20]} 25. Nxe4 {[%clk 00:13:21]} {[%emt
00:00:05]} Bf4 {[%clk 00:08:50]} {[%emt 00:00:02]} 26. Rg1 {[%clk 00:11:43]}
{[%emt 00:01:41]} Rbd8 {[%clk 00:08:19]} {[%emt 00:00:36]} 27. f3 {[%clk
00:11:28]} {[%emt 00:00:22]} Ne3 {[%clk 00:08:14]} {[%emt 00:00:10]} 28. Rde1
{[%clk 00:10:46]} {[%emt 00:00:44]} Rxd4 {[%clk 00:07:38]} {[%emt 00:00:44]} 29.
Ng5 {[%clk 00:10:20]} {[%emt 00:00:28]} Bxg5 {[%clk 00:07:05]} {[%emt
00:00:40]} 30. Rxg5 {[%clk 00:09:50]} {[%emt 00:00:36]} Rxf3 {[%clk 00:07:08]}
{[%emt 00:00:02]} 31. Re5 {[%clk 00:08:29]} {[%emt 00:01:25]} Rf1 {[%clk
00:06:40]} {[%emt 00:00:34]} 32. Rxf1 {[%clk 00:08:24]} {[%emt 00:00:10]} Nxf1
{[%clk 00:06:43]} {[%emt 00:00:02]} 33. c3 {[%clk 00:08:15]} {[%emt 00:00:15]}
Rd6 {[%clk 00:06:41]} {[%emt 00:00:06]} 34. Rxh5 {[%clk 00:08:13]} {[%emt
00:00:07]} Ne3 {[%clk 00:06:43]} {[%emt 00:00:02]} 35. a3 {[%clk 00:07:59]}
{[%emt 00:00:19]} Nf5 {[%clk 00:06:26]} {[%emt 00:00:22]} 36. Ka2 {[%clk
00:07:41]} {[%emt 00:00:24]} Rd3 {[%clk 00:06:09]} {[%emt 00:00:20]} 37. Rg5
{[%clk 00:07:18]} {[%emt 00:00:27]} Rh3 {[%clk 00:05:41]} {[%emt 00:00:35]} 38.
Rg2 {[%clk 00:06:38]} {[%emt 00:00:41]} Nxh4 {[%clk 00:05:31]} {[%emt
00:00:19]} 39. Rg4 {[%clk 00:06:32]} {[%emt 00:00:10]} b5 {[%clk 00:04:54]}
{[%emt 00:00:42]} 40. b3 {[%clk 00:06:25]} {[%emt 00:00:09]} Rh2+ {[%clk
00:04:54]} {[%emt 00:00:09]} 0-1



[ePGN "0.1;DGT LiveChess/2.2.6"]

[Event "MČR mládeže v rapid šachu 2024 H10"]
[Site "Harrachov, Czech Republic"]
[Date "????.??.??"]
[Round "2.7"]
[White "Bucek Vit"]
[Black "Bartak Tobias"]
[Result "1-0"]
[TimeControl "20+5"]
[WhiteFideId "23750812"]
[BlackFideId "23753544"]
[WhiteElo "1586"]
[BlackElo "1563"]

1. e4 {[%clk 00:20:08]} {[%emt 00:11:45]} d5 {[%clk 00:20:05]} {[%emt
00:00:05]} 2. exd5 {[%clk 00:20:11]} {[%emt 00:00:03]} Qxd5 {[%clk 00:20:08]}
{[%emt 00:00:02]} 3. Nc3 {[%clk 00:20:15]} {[%emt 00:00:01]} Qa5 {[%clk
00:20:12]} {[%emt 00:00:01]} 4. d4 {[%clk 00:20:17]} {[%emt 00:00:02]} Nf6
{[%clk 00:20:15]} {[%emt 00:00:01]} 5. Bd2 {[%clk 00:20:20]} {[%emt 00:00:02]}
c6 {[%clk 00:20:19]} 6. Bc4 {[%clk 00:20:22]} {[%emt 00:00:03]} Qc7 {[%clk
00:20:06]} {[%emt 00:00:18]} 7. Qe2 {[%clk 00:20:16]} {[%emt 00:00:11]} e6
{[%clk 00:19:30]} {[%emt 00:00:41]} 8. Nf3 {[%clk 00:19:58]} {[%emt 00:00:22]}
Bd6 {[%clk 00:19:11]} {[%emt 00:00:24]} 9. O-O-O {[%clk 00:19:46]} {[%emt
00:00:17]} O-O {[%clk 00:19:00]} {[%emt 00:00:17]} 10. h4 {[%clk 00:19:25]}
{[%emt 00:00:26]} a5 {[%clk 00:18:54]} {[%emt 00:00:11]} 11. Ne5 {[%clk
00:18:47]} {[%emt 00:00:43]} b5 {[%clk 00:17:49]} {[%emt 00:01:10]} 12. Bd3
{[%clk 00:18:19]} {[%emt 00:00:32]} Nbd7 {[%clk 00:15:37]} {[%emt 00:02:19]} 13.
Nxd7 {[%clk 00:16:45]} {[%emt 00:01:38]} Bxd7 {[%clk 00:15:10]} {[%emt
00:00:33]} 14. g4 {[%clk 00:16:34]} {[%emt 00:00:16]} a4 {[%clk 00:14:25]}
{[%emt 00:00:50]} 15. g5 {[%clk 00:15:51]} {[%emt 00:00:48]} Ne8 {[%clk
00:14:10]} {[%emt 00:00:20]} 16. h5 {[%clk 00:15:06]} {[%emt 00:00:50]} b4
{[%clk 00:13:24]} {[%emt 00:00:51]} 17. Ne4 {[%clk 00:14:56]} {[%emt 00:00:14]}
Be7 {[%clk 00:11:34]} {[%emt 00:01:55]} 18. g6 {[%clk 00:14:47]} {[%emt
00:00:15]} h6 {[%clk 00:10:51]} {[%emt 00:00:48]} 19. gxf7+ {[%clk 00:14:42]}
{[%emt 00:00:10]} Rxf7 {[%clk 00:10:52]} {[%emt 00:00:03]} 20. Rhg1 {[%clk
00:14:26]} {[%emt 00:00:19]} Kh8 {[%clk 00:10:10]} {[%emt 00:00:49]} 21. Qg4
{[%clk 00:13:08]} {[%emt 00:01:19]} Bd6 {[%clk 00:06:42]} {[%emt 00:03:37]} 22.
Qg6 {[%clk 00:12:30]} {[%emt 00:00:43]} Re7 {[%clk 00:05:43]} {[%emt 00:01:04]}
23. Nxd6 {[%clk 00:12:08]} {[%emt 00:00:27]} Nxd6 {[%clk 00:05:26]} {[%emt
00:00:21]} 24. Qh7# {[%clk 00:12:10]} {[%emt 00:00:04]} 1-0



[ePGN "0.1;DGT LiveChess/2.2.6"]

[Event "MČR mládeže v rapid šachu 2024 H10"]
[Site "Harrachov, Czech Republic"]
[Date "????.??.??"]
[Round "2.8"]
[White "Vratny Vojtech"]
[Black "Temirbek Amirali"]
[Result "0-1"]
[TimeControl "20+5"]
[WhiteFideId "23753692"]
[BlackFideId "447019808"]
[WhiteElo "1591"]
[BlackElo "1514"]

1. Nf3 {[%clk 00:20:07]} {[%emt 00:00:02]} d6 {[%clk 00:20:03]} {[%emt
00:00:08]} 2. g3 {[%clk 00:20:07]} {[%emt 00:00:05]} g6 {[%clk 00:20:06]}
{[%emt 00:00:02]} 3. Bg2 {[%clk 00:20:07]} {[%emt 00:00:04]} Bg7 {[%clk
00:20:10]} {[%emt 00:00:02]} 4. O-O {[%clk 00:20:05]} {[%emt 00:00:06]} a6
{[%clk 00:19:56]} {[%emt 00:00:20]} 5. d3 {[%clk 00:20:05]} {[%emt 00:00:04]}
Nf6 {[%clk 00:19:59]} {[%emt 00:00:02]} 6. e4 {[%clk 00:20:07]} {[%emt
00:00:03]} O-O {[%clk 00:20:01]} {[%emt 00:00:03]} 7. c3 {[%clk 00:20:08]}
{[%emt 00:00:04]} c6 {[%clk 00:19:55]} {[%emt 00:00:12]} 8. Nbd2 {[%clk
00:19:58]} {[%emt 00:00:14]} b5 {[%clk 00:19:53]} {[%emt 00:00:07]} 9. Qc2
{[%clk 00:19:39]} {[%emt 00:00:24]} Bb7 {[%clk 00:19:55]} {[%emt 00:00:03]} 10.
Re1 {[%clk 00:19:09]} {[%emt 00:00:27]} Nbd7 {[%clk 00:19:53]} {[%emt
00:00:15]} 11. Nf1 {[%clk 00:18:32]} {[%emt 00:00:40]} Rc8 {[%clk 00:19:48]}
{[%emt 00:00:12]} 12. h3 {[%clk 00:18:08]} {[%emt 00:00:28]} c5 {[%clk
00:19:25]} {[%emt 00:00:30]} 13. Be3 {[%clk 00:17:43]} {[%emt 00:00:27]} c4
{[%clk 00:19:28]} {[%emt 00:00:05]} 14. N3d2 {[%clk 00:17:04]} {[%emt
00:00:42]} cxd3 {[%clk 00:19:27]} {[%emt 00:00:09]} 15. Qxd3 {[%clk 00:17:02]}
{[%emt 00:00:06]} Nc5 {[%clk 00:19:29]} {[%emt 00:00:03]} 16. Qc2 {[%clk
00:16:18]} {[%emt 00:00:49]} b4 {[%clk 00:18:57]} {[%emt 00:00:39]} 17. Bxc5
{[%clk 00:15:44]} {[%emt 00:00:37]} Rxc5 {[%clk 00:18:50]} {[%emt 00:00:13]} 18.
e5 {[%clk 00:15:22]} {[%emt 00:00:27]} Nd5 {[%clk 00:18:36]} {[%emt 00:00:19]}
19. Ne4 {[%clk 00:14:14]} {[%emt 00:01:09]} Rc7 {[%clk 00:18:37]} {[%emt
00:00:08]} 20. exd6 {[%clk 00:13:33]} {[%emt 00:00:46]} exd6 {[%clk 00:17:49]}
{[%emt 00:00:53]} 21. Ne3 {[%clk 00:11:39]} {[%emt 00:01:53]} bxc3 {[%clk
00:16:51]} {[%emt 00:01:09]} 22. Nxd5 {[%clk 00:11:15]} {[%emt 00:00:27]} Bxd5
{[%clk 00:16:52]} {[%emt 00:00:05]} 23. Nxc3 {[%clk 00:10:31]} {[%emt
00:00:47]} Bxg2 {[%clk 00:15:52]} {[%emt 00:01:07]} 24. Kxg2 {[%clk 00:10:31]}
{[%emt 00:00:05]} Qf6 {[%clk 00:15:56]} {[%emt 00:00:02]} 25. Rac1 {[%clk
00:09:45]} {[%emt 00:00:41]} Rfc8 {[%clk 00:15:49]} {[%emt 00:00:22]} 26. Re2
{[%clk 00:07:58]} {[%emt 00:01:49]} Qd4 {[%clk 00:14:27]} {[%emt 00:01:29]} 27.
Rd2 {[%clk 00:06:33]} {[%emt 00:01:29]} Qb4 {[%clk 00:14:30]} {[%emt 00:00:05]}
28. Rd3 {[%clk 00:05:25]} {[%emt 00:01:12]} Qb7+ {[%clk 00:13:36]} {[%emt
00:01:00]} 29. Kg1 {[%clk 00:05:19]} {[%emt 00:00:10]} d5 {[%clk 00:13:35]}
{[%emt 00:00:07]} 30. Qd2 {[%clk 00:03:26]} {[%emt 00:01:57]} d4 {[%clk
00:13:39]} {[%emt 00:00:02]} 31. Ne2 {[%clk 00:03:27]} {[%emt 00:00:03]} Rxc1+
{[%clk 00:13:16]} {[%emt 00:00:29]} 32. Nxc1 {[%clk 00:03:25]} {[%emt
00:00:05]} Qe4 {[%clk 00:10:56]} {[%emt 00:02:26]} 33. Nb3 {[%clk 00:03:02]}
{[%emt 00:00:28]} h5 {[%clk 00:10:18]} {[%emt 00:00:43]} 34. Nxd4 {[%clk
00:01:57]} {[%emt 00:01:09]} Rd8 {[%clk 00:10:19]} {[%emt 00:00:05]} 35. Qe3
{[%clk 00:01:24]} {[%emt 00:00:37]} Rxd4 {[%clk 00:10:19]} {[%emt 00:00:07]} 36.
Qxe4 {[%clk 00:01:03]} {[%emt 00:00:26]} Rxe4 {[%clk 00:10:20]} {[%emt
00:00:03]} 37. Rd8+ {[%clk 00:01:01]} {[%emt 00:00:07]} Kh7 {[%clk 00:10:11]}
{[%emt 00:00:15]} 38. Ra8 {[%clk 00:01:02]} {[%emt 00:00:03]} Ra4 {[%clk
00:10:13]} {[%emt 00:00:03]} 0-1



[ePGN "0.1;DGT LiveChess/2.2.6"]